Cogmind - Beta 13 @@@ ROGUE MODE // 2024.04.02 @ 15:55:38 Player: frawding Result: Destroyed by G-47 Trooper with Particle Gun Performance ------------- Evolutions (0) 0 Regions Visited (2) 400 Robots Destroyed (36) 180 Value Destroyed (692) 692 Prototype IDs (0) 0 Alien Tech Used (0) 0 Bonus (16) 16 TOTAL SCORE: 1288 Bonus ------- High Alert Combat Kills 16 Cogmind --------- Core Integrity 0/250 Matter 300/300 Energy 155/160 System Corruption 0% Temperature Cool (9) Movement Walking (190) Ox1 Location -10/Mines Parts ------- > --- POWER (1) -------- Light Nuclear Core > --- PROPULSION (2) --- Aluminum Leg Aluminum Leg > --- UTILITY (2) ------ Large Storage Unit Signal Interpreter > --- WEAPON (2) ------- Beam Cannon Hammer > --- INVENTORY (15) --- Heat Sink Improved Heat Sink High-capacity Storage Unit Large Battery (200) Large Matter Pod (28) High-capacity Matter Pod (0) Seismic Detector Beam Cannon Beam Cannon Beam Cannon Assault Rifle Light Assault Rifle Mining Claw Peak State ------------ > --- POWER ------------ Light Nuclear Core > --- PROPULSION ------- Aluminum Leg Aluminum Leg > --- UTILITY ---------- Large Storage Unit Signal Interpreter > --- WEAPON ----------- Hammer Mining Claw > --- INVENTORY -------- Heat Sink Improved Heat Sink High-capacity Storage Unit Large Battery Large Matter Pod High-capacity Matter Pod Seismic Detector Beam Cannon Beam Cannon Beam Cannon Beam Cannon Assault Rifle Light Assault Rifle [Rating: 10] Favorites ----------- Power Ion Engine Engine Ion Engine Power Core Light Nuclear Core Propulsion Light Treads Treads Light Treads Leg Aluminum Leg Utility Signal Interpreter Storage Large Storage Unit Processor Signal Interpreter Weapon Assault Rifle Energy Cannon Beam Cannon Ballistic Gun Assault Rifle Launcher Grenade Launcher Impact Weapon Hammer Slashing Weapon Mining Claw Build | -11 -10 -10 ------- Run | Yrd Mat Min Slots Evolved . | . . . Power . | . . . Propulsion . | . . . Utility . | . . . Weapon . | . . . Parts Attached 23 | 5 12 6 Power 3 | 1 1 1 Engine 2 | 1 1 . Core 1 | . . 1 Reactor . | . . . Propulsion 6 | 2 1 3 Treads 4 | 2 1 1 Leg 2 | . . 2 Wheel . | . . . Hover . | . . . Flight . | . . . Utility 9 | 1 7 1 Device . | . . . Storage 8 | 1 6 1 Processor 1 | . 1 . Hackware . | . . . Protection . | . . . Artifact . | . . . Weapon 5 | 1 3 1 Energy Gun . | . . . Energy Cannon 1 | . . 1 Ballistic Gun 1 | 1 . . Ballistic Cannon . | . . . Launcher 1 | . 1 . Special Weapon . | . . . Impact Weapon 1 | . 1 . Slashing Weapon 1 | . 1 . Piercing Weapon . | . . . Special Melee Weapon . | . . . Unidentified Prototypes . | . . . Parts Lost 5 | . 2 3 Power 2 | . 1 1 Propulsion 2 | . . 2 Utility . | . . . Weapon 1 | . 1 . Highest Loss Streak 2 | . 2 2 To Critical Strikes . | . . . Average Slot Usage (%) 87 | . 87 85 Engine 8 | . 9 . Core 1 | . . 11 Treads 25 | . 27 10 Storage 18 | . 19 14 Processor 8 | . 8 14 Ballistic Gun 11 | . 12 . Launcher 2 | . 3 . Impact Weapon 5 | . 4 14 Slashing Weapon 2 | . 1 11 Naked Turns . | . . . Heaviest Build 47 | 12 47 47 Greatest Support 40 | 40 40 40 Greatest Overweight (x) 9 | . 1 9 Average Overweight (x) . | . . 1 Largest Inventory Capacity 20 | 8 20 20 Average Capacity 16 | 7 17 15 Most Carried 14 | 5 12 14 Average Carried 7 | . 7 12 Final Capacity 20 | 8 20 15 Final Carried 13 | 2 12 13 Class Distribution -------------------- 96% | Mutant 3% | Scavenger-Mutant Dominant Class ---------------- Mutant | -10/Materials Mutant | -10/Mines Resources | -11 -10 -10 ----------- Run | Yrd Mat Min Matter Collected 900 | 364 314 222 Remotely . | . . . Salvage Created 863 | 215 418 230 Parts 65 | 17 33 15 Haulers Intercepted 1 | . 1 . Recyclers Shooed 2 | 1 1 . Parts Field Recycled . | . . . Retrieved Matter . | . . . Parts Self-Destructed . | . . . Prevented . | . . . Kills | -11 -10 -10 ------- Run | Yrd Mat Min Combat Hostiles Destroyed 19 | . 13 6 Melee 6 | . 2 4 Guns 5 | . 5 . AOE 6 | . 6 . Classes Destroyed 9 | 3 6 . Worker 4 | 2 2 . Builder 1 | . 1 . Tunneler 4 | 4 . . Hauler 1 | . 1 . Recycler 2 | 1 1 . Operator 2 | . 2 . Watcher 3 | . 3 . Swarmer 6 | . 6 . Grunt 13 | . 7 6 Best Kill Streak 9 | 3 9 3 Combat Bots Only 4 | . 4 3 Max Kills in Single Turn 3 | 1 3 1 Gunslinging . | . . . Exploded 1 | . 1 . Melee 1 | . 1 1 Uniques/NPCs Destroyed . | . . . Combat | -11 -10 -10 -------- Run | Yrd Mat Min Hostile Shots Fired 99 | . 52 47 Missed 24 | . 14 10 Damage Taken 1031 | . 547 484 Core 257 | . 65 192 Absorbed by Shields . | . . . Regen/Repaired (Parts) 97 | . 97 . Core Remaining (%) 100 | 100 . . Volleys Fired 89 | 38 50 1 Largest 2 | 1 2 1 Hottest 60 | 20 50 60 Shots Fired 107 | 38 68 1 Gun 86 | 38 48 . Cannon 1 | . . 1 Launcher 20 | . 20 . Special . | . . . Kinetic 86 | 38 48 . Thermal 1 | . . 1 Explosive 20 | . 20 . Electromagnetic . | . . . Robot Hit Streak 10 | 10 6 . Robot Miss Streak 3 | 3 3 2 Penetration Max . | . . . Secondary Targets . | . . . Shots Hit Robots 86 | 29 35 22 Core Hits 45 | 8 32 5 Critical Kills . | . . . Critical Parts Destroyed 5 | 1 2 2 Critical Strikes 5 | 1 2 2 Destroy 2 | 1 1 . Smash 3 | . 1 2 Melee Attacks 32 | . 6 26 Impact 26 | . 4 22 Slashing 6 | . 2 4 Piercing . | . . . Sneak Attacks 2 | . 1 1 Combat Hostiles . | . . . Follow-up Attacks 4 | . . 4 Damage Inflicted 2153 | 364 1217 572 Guns 639 | 364 275 . Cannons . | . . . Explosions 817 | . 817 . Melee 685 | . 113 572 Ramming 12 | . 12 . Kinetic 639 | 364 275 . Thermal . | . . . Explosive 817 | . 817 . Electromagnetic . | . . . Impact 619 | . 113 506 Slashing 66 | . . 66 Piercing . | . . . Highest Corruption . | . . . Average Corruption . | . . . Corruption Purged . | . . . Corruption Blocked . | . . . Overload Shots . | . . . Overflow Damage 169 | . 91 78 Projectiles . | . . . Explosions 15 | . 15 . Melee 154 | . 76 78 Knockbacks . | . . . Impact . | . . . Kinetic . | . . . Secondary . | . . . Self-Inflicted Damage 158 | . 158 . Shots 6 | . 6 . Rammed 1 | . 1 . Targets Rammed 1 | . 1 . Kicked . | . . . Crushed . | . . . Highest Temperature 24 | . 13 24 Average Temperature 7 | . 5 12 Received Heat Transfer 384 | . 93 291 Siege Activations . | . . . Robots Corrupted . | . . . Combat Hostiles . | . . . Parts Fried 5 | . 2 3 Impact Corruptions 7 | . 2 5 Robots Melted . | . . . Combat Hostiles . | . . . Parts Melted . | . . . Heat Transferred . | . . . Parts Sabotaged . | . . . Parts Stolen . | . . . Parts Stripped . | . . . Power Chain Reactions . | . . . Alert | -11 -10 -10 ------- Run | Yrd Mat Min Peak Influence 439 | 35 439 157 Initial 47 | . 22 47 Average 181 | 17 213 90 Maximum Alert Level 2 | . 2 . Low Security (%) 66 | 100 57 100 Level 1 25 | . 32 . Level 2 7 | . 9 . Level 3 . | . . . Level 4 . | . . . Level 5 . | . . . High Security . | . . . Max Security . | . . . Squads Dispatched 2 | . 2 . Investigation 1 | . 1 . Extermination . | . . . Reinforcement 1 | . 1 . Assault . | . . . Garrison . | . . . Intercept . | . . . Searches Triggered . | . . . Construction Impeded . | . . . Haulers Reinforced . | . . . Active Scanning Responses . | . . . Cargo Convoy Interrupts . | . . . Stealth | -11 -10 -10 --------- Run | Yrd Mat Min Distress Signals 2 | . 2 . Communications Jammed . | . . . Distress Signals . | . . . Times Spotted 31 | . 24 7 Peak Tracking Total 7 | . 7 3 Tactical Retreats 1 | . 1 . Traps | -11 -10 -10 ------- Run | Yrd Mat Min Traps Triggered 2 | . 2 . Indirectly . | . . . Trap Hack Attempts . | . . . Triggered . | . . . Disarmed . | . . . Reprogrammed . | . . . Reused . | . . . Traps Extracted . | . . . Installed . | . . . Triggered . | . . . Machines | -11 -10 -10 ---------- Run | Yrd Mat Min Machines Disabled 2 | . 2 . Max in Single Turn 1 | . 1 . Machines Repaired . | . . . Machines Dismantled . | . . . Machines Sabotaged . | . . . Overloaded Fab Kills . | . . . Hacking | -11 -10 -10 --------- Run | Yrd Mat Min Machines Accessed 1 | . 1 . Terminals . | . . . Fabricators . | . . . Repair Stations 1 | . 1 . Recycling Units . | . . . Scanalyzers . | . . . Garrison Access . | . . . Total Hacks 3 | . 3 . Successful 2 | . 2 . Failed 1 | . 1 . Catastrophic . | . . . Database Lockouts . | . . . Manual . | . . . Terminals . | . . . Fabricators . | . . . Repair Stations 3 | . 3 . Recycling Units . | . . . Scanalyzers . | . . . Garrison Access . | . . . Terminal Hacks . | . . . Fabricator Hacks . | . . . Repair Station Hacks 2 | . 2 . Scan Component 1 | . 1 . Repair 1 | . 1 . Recycling Unit Hacks . | . . . Scanalyzer . | . . . Garrison Access Hacks . | . . . Unauthorized Hacks . | . . . Terminals . | . . . Fabricators . | . . . Repair Stations . | . . . Recycling Units . | . . . Scanalyzers . | . . . Garrison Access . | . . . Data Cores Recovered 1 | . 1 . Used . | . . . Hacking Detections 1 | . 1 . Full Trace Events 1 | . 1 . Feedback Events . | . . . Feedback Blocked . | . . . Robot Schematics Acquired . | . . . Robots Built . | . . . Authchips . | . . . Time . | . . . Total Robot Build Rating . | . . . Part Schematics Acquired . | . . . Parts Built . | . . . Authchips . | . . . Time . | . . . Total Part Build Rating . | . . . Parts Repaired 1 | . 1 . Time 26 | . 26 . Parts Recycled . | . . . Recycled Matter . | . . . Retrieved Matter . | . . . Retrieved Components . | . . . Parts Scanalyzed . | . . . Part Schematics Acquired . | . . . Parts Damaged . | . . . Bothacking | -11 -10 -10 ------------ Run | Yrd Mat Min Used RIF Installer . | . . . Robots Hacked . | . . . Non-combat . | . . . Combat . | . . . Robot Hacks Applied . | . . . Relay Couplers Released . | . . . Fabnet Peak Effective % . | . . . Robots Rewired . | . . . Allies Hacked . | . . . Hacks Repelled . | . . . Allies | -11 -10 -10 -------- Run | Yrd Mat Min Total Allies . | . . . Largest Group . | . . . Highest-Rated Group . | . . . Highest-Rated Ally . | . . . Total Orders . | . . . Ally Attacks . | . . . Total Damage . | . . . Kills . | . . . Allies Corrupted . | . . . Allies Melted . | . . . Intel | -11 -10 -10 ------- Run | Yrd Mat Min Robot Analysis Total . | . . . Derelict Logs Recovered . | . . . Drone Launches . | . . . Drone Recoveries . | . . . Exploration | -11 -10 -10 ------------- Run | Yrd Mat Min Turns Passed 2645 | 225 2091 329 Spaces Moved 1165 | 92 965 108 Core 13 | 12 . 1 Treads 1121 | 80 965 76 Legs 31 | . . 31 Wheels . | . . . Hover . | . . . Flight . | . . . Fastest Speed 50 | 50 160 190 Average Speed 195 | 145 195 231 Slowest Speed 500 | 160 240 500 Overloaded Moves . | . . . Propulsion Burnouts . | . . . Robots Hopped . | . . . Cave-ins Triggered . | . . . Exploration Rate (%) 40 | 5 98 18 Regions Visited 2 Branch Regions 1 Pre-discovered Areas . | . . . Known Exits Taken 1 | . 1 . Unknown Exits Taken 1 | 1 . . Scrap Searched 1 | . . 1 Spaces Dug 1 | . 1 . Terrain Destroyed 116 | . 116 . Melee 1 | . 1 . Projectile . | . . . AOE 115 | . 115 . Terrain Rammed . | . . . Walls Destroyed . | . . . Machines Disabled . | . . . Actions | -11 -10 -10 --------- Run | Yrd Mat Min Total 1386 | 145 1093 148 Wait 39 | 4 30 5 Move 1163 | 91 964 108 Hop . | . . . Pick Up 31 | 7 20 4 Fast Attach . | . . . Attach 21 | 5 11 5 Detach 7 | . 5 2 Swap 2 | . 1 1 Drop 5 | . 5 . Fire 89 | 38 50 1 Melee 28 | . 6 22 Ram . | . . . Kick . | . . . Crush 1 | . 1 . Escape Stasis . | . . . Rewire . | . . . Trap . | . . . Miscellaneous . | . . . Route ------- -11/Scrapyard -10/Materials (discovered 4 exits: *Mat x3 / *Min) -10/Mines History --------- Turn | Location | Event 10 | -11/Scrapyard | Discovered new exit (range 15) 226 | -11/Scrapyard | Entered Materials 303 | -10/Materials | Build established: Mutant 421 | -10/Materials | Discovered new exit (range 12) 785 | -10/Materials | Discovered new exit (range 15) 1109 | -10/Materials | Identified exit to Materials 1184 | -10/Materials | Discovered exit to Materials (range 15) 1264 | -10/Materials | Repaired Lgt. Treads 1945 | -10/Materials | Discovered exit to Materials (range 3) 2295 | -10/Materials | Identified exit to Mines 2317 | -10/Materials | Entered Mines 2336 | -10/Mines | Core integrity fell below 50% 2417 | -10/Mines | Found a hidden stash of uninstalled traps 2543 | -10/Mines | Core integrity fell below 20% 2646 | -10/Mines | Destroyed by G-47 Trooper with Particle Gun Last Messages --------------- 02562_ Destroyed Sml. Laser. 02562_ G-34 Mercenary system corrupted by crushing effect. 02563_ G-34 Mercenary system terminally corrupted. 02563_ Heat Sink fried. 02570_ Acquired Aluminum Leg. 02572_ Acquired 34 matter. 02573_ R-06 Scavenger collects Sml. Laser. 02576_ R-06 Scavenger collects Lgt. Nuclear Core. 02577_ Acquired Aluminum Leg. 02580_ R-06 Scavenger collects Aluminum Leg. 02583_ R-06 Scavenger collects Ion Engine. 02602_ Acquired 41 matter. 02610_ Searching scrap... 02610_ Found Lrg. Storage Unit. 02610_ Found 20 Matter. 02611_ Acquired 20 matter. 02643_ G-34 Mercenary destroyed. Map ----- +----------------------------------------------------+ | | | | | | | | | | | ?????????????????????????????? | | ?????????????????????????????? | | ?????????????????????????????? | | ?????????????????????????????? | | ?????????????????????????????? | | ?????????????????????????????? | | ?????????????????????????????? | | ?????????????????????????????? | | ?????????????????????????????? | | ?????????????????????????????? | | ?????????????????????????????? | | ????????????????????#????????? | | ????????????????????# ???????? | | ?????????????????#### #??????? | | ?????????????????? ?????? | | ????????????????? """ ?????? | | ????????????????# """ ####?? | | ????????????????# """ #?? | | ????????????????# ! #?? | | ????????????????# #g*#?? | | ????????????????######??#@ #?? | | ????????????????????????# #?? | | ????????????????????????# #?? | | ????????????????????????# #?? | | ????????????????????????# #?? | | ????????????????????????# #?? | | ????????????????????????# #?? | | ????????????????????????# #?? | | ????????????????????????# #?? | | ????????????????????????# #?? | | ????????????????????????# !#?? | | ????????????????????????# #?? | | ????????????????????????# #?? | | ????????????????????????# =#?? | | ????????????????????????# =#?? | | ????????????????????????# #?? | | ?????????????#######???## #?? | | ?????????????# ??## #?? | | ??????????????? ?## #?? | | ?????????????????# ## #?? | | ?????????????????# #?? | | ?????????????????# #?? | | ?????????????????# ##?? | | ?????????????????## ####??? | | ??????????????????## ##?????? | +----------------------------------------------------+ Best States ------------- Heat Dissipation 25 Energy Generation 14 Energy Capacity 250 Matter Stores 300 Matter Capacity 500 Sight Range 16 Terrain Scan Density 10 Evasion (%) 50 Recoil Reduction 2 Item Schematics ----------------- None Robot Schematics ------------------ None Fabricated ------------ Nothing Alien Tech Used ----------------- None Achievements -------------- Let's See Who's Tougher Challenges ------------ None Game ------ Seed MicrowarpStormPenetrator Manual? 0 Play Time 00:19:24 Cumulative 6.3 hours Start 2024.04.02 @ 15:36:01 End 2024.04.02 @ 15:55:38 Sessions 1 Manual Loads 0 Difficulty Rogue Special Mode None Game No. 6 Rogue 6 Adventurer 0 Explorer 0 Win Type - Total 0 Types 0/0/0/0/0/0/0/0/0 Lore% 6 Gallery% 11 Achievement% 12 Wizard Run 0 Options --------- Layout 1 ASCII 0 Keyboard 0 Movement Mouse Keybinds 0 Fullscreen 1 Font 24/Smallcaps Map View 50x35 Zoom Use 0% Tactical HUD 1 Map Filters NONE Filters NONE Steam 1 RUN: 10265638-3966-41e2-9ff7-854afdbbe9d1